[Event "Titled Tuesday Blitz September 27 Late 2022"]
[White "Ansh M Shah"]
[Black "Ekdyshman, Mikhail"]
[WhiteFideId "25033379"]
[BlackFideId "4149416"]
[WhiteElo "1819"]
[BlackElo "2146"]
[Result "0-1"]
[Round "09"]
[TimeControl "180+1"]
[Date "2022.09.28"]
[WhiteClock "0:00:16"]
[BlackClock "0:00:08"]

1. d4 {[%clk 0:02:57]}  Nf6 {[%clk 0:02:59]} 2. c4 {[%clk 0:02:58]}  c5 {[%clk 0:02:59]} 3. d5 {[%clk 0:02:58]}  b5 {[%clk 0:02:59]} 4. cxb5 {[%clk 0:02:59]}  a6 {[%clk 0:03:00]} 5. e3 {[%clk 0:02:54]}  axb5 {[%clk 0:02:58]} 6. Bxb5 {[%clk 0:02:42]}  Qa5+ {[%clk 0:02:57]} 7. Nc3 {[%clk 0:02:43]}  Bb7 {[%clk 0:02:50]} 8. Bd2 {[%clk 0:02:17]}  e6 {[%clk 0:02:48]} 9. a4 {[%clk 0:02:11]}  Qb6 {[%clk 0:02:46]} 10. e4 {[%clk 0:01:56]}  exd5 {[%clk 0:02:33]} 11. exd5 {[%clk 0:01:57]}  Nxd5 {[%clk 0:02:30]} 12. Nxd5 {[%clk 0:01:58]}  Bxd5 {[%clk 0:02:30]} 13. Nf3 {[%clk 0:01:58]}  Be7 {[%clk 0:02:26]} 14. O-O {[%clk 0:01:56]}  O-O {[%clk 0:02:25]} 15. Bg5 {[%clk 0:01:08]}  Bxf3 {[%clk 0:00:24]} 16. Qxf3 {[%clk 0:01:09]}  Bxg5 {[%clk 0:00:17]} 17. Qxa8 {[%clk 0:01:08]}  Bf6 {[%clk 0:00:12]} 18. Rab1 {[%clk 0:00:52]}  g6 {[%clk 0:00:10]} 19. Qd5 {[%clk 0:00:50]}  d6 {[%clk 0:00:08]} 20. Rfd1 {[%clk 0:00:49]}  Bd4 {[%clk 0:00:08]} 21. Bc4 {[%clk 0:00:39]}  Nc6 {[%clk 0:00:06]} 22. b3 {[%clk 0:00:37]}  Nb4 {[%clk 0:00:06]} 23. Qf3 {[%clk 0:00:35]}  Be5 {[%clk 0:00:04]} 24. g3 {[%clk 0:00:33]}  Nc6 {[%clk 0:00:04]} 25. Rd5 {[%clk 0:00:31]}  Nd4 {[%clk 0:00:03]} 26. Qe4 {[%clk 0:00:31]}  Qc7 {[%clk 0:00:01]} 27. Rd1 {[%clk 0:00:30]}  Re8 {[%clk 0:00:02]} 28. Qd3 {[%clk 0:00:28]}  Rb8 {[%clk 0:00:02]} 29. h4 {[%clk 0:00:21]}  Bf6 {[%clk 0:00:03]} 30. h5 {[%clk 0:00:21]}  Kg7 {[%clk 0:00:03]} 31. Qe3 {[%clk 0:00:16]}  Ne6 {[%clk 0:00:03]} 32. h6+ {[%clk 0:00:16]}  Kg8 {[%clk 0:00:03]} 33. Rxd6 {[%clk 0:00:17]}  Nd4 {[%clk 0:00:04]} 34. Rxf6 {[%clk 0:00:16]}  Qd7 {[%clk 0:00:04]} 35. Rd3 {[%clk 0:00:13]}  Re8 {[%clk 0:00:04]} 36. Qf4 {[%clk 0:00:11]}  Ne2+ {[%clk 0:00:04]} 37. Kg2 {[%clk 0:00:11]}  Nxf4+ {[%clk 0:00:04]} 38. Rxf4 {[%clk 0:00:11]}  Qb7+ {[%clk 0:00:05]} 39. Rdf3 {[%clk 0:00:11]}  Re7 {[%clk 0:00:05]} 40. Rxf7 {[%clk 0:00:10]}  Rxf7 {[%clk 0:00:04]} 41. Bxf7+ {[%clk 0:00:11]}  Kh8 {[%clk 0:00:04]} 42. Bc4 {[%clk 0:00:12]}  Qe7 {[%clk 0:00:05]} 43. g4 {[%clk 0:00:13]}  g5 {[%clk 0:00:04]} 44. Kg3 {[%clk 0:00:14]}  Qe5+ {[%clk 0:00:04]} 45. Kg2 {[%clk 0:00:14]}  Qe7 {[%clk 0:00:05]} 46. Kh3 {[%clk 0:00:13]}  Qd6 {[%clk 0:00:05]} 47. Rf5 {[%clk 0:00:13]}  Qxh6+ {[%clk 0:00:05]} 48. Kg3 {[%clk 0:00:13]}  Qd6+ {[%clk 0:00:06]} 49. Kg2 {[%clk 0:00:13]}  Qc6+ {[%clk 0:00:06]} 50. f3 {[%clk 0:00:14]}  Qd6 {[%clk 0:00:05]} 51. Rxg5 {[%clk 0:00:14]}  Qd2+ {[%clk 0:00:05]} 52. Kg3 {[%clk 0:00:15]}  Qxg5 {[%clk 0:00:06]} 53. a5 {[%clk 0:00:15]}  Qe5+ {[%clk 0:00:06]} 54. Kf2 {[%clk 0:00:15]}  Qd4+ {[%clk 0:00:06]} 55. Kg3 {[%clk 0:00:15]}  Qd6+ {[%clk 0:00:07]} 56. Kg2 {[%clk 0:00:16]}  Qd2+ {[%clk 0:00:07]} 57. Kg3 {[%clk 0:00:16]}  Qxa5 {[%clk 0:00:08]} 0-1


[Site "https://www.chess.com"]

[Event "Titled Tuesday Blitz September 27 Late 2022"]
[White "Bartel, Mateusz"]
[Black "Caruana, Fabiano"]
[WhiteFideId "1112635"]
[BlackFideId "2020009"]
[WhiteElo "2526"]
[BlackElo "2847"]
[Result "0-1"]
[Round "09"]
[TimeControl "180+1"]
[Date "2022.09.27"]
[WhiteClock "0:00:02"]
[BlackClock "0:00:13"]

1. e4 {[%clk 0:02:47]}  c5 {[%clk 0:02:58]} 2. Nf3 {[%clk 0:02:46]}  e6 {[%clk 0:02:58]} 3. d4 {[%clk 0:02:43]}  cxd4 {[%clk 0:02:59]} 4. Nxd4 {[%clk 0:02:43]}  Nc6 {[%clk 0:02:59]} 5. Nc3 {[%clk 0:02:42]}  Qc7 {[%clk 0:02:59]} 6. Qd3 {[%clk 0:02:41]}  Nf6 {[%clk 0:02:56]} 7. Bg5 {[%clk 0:02:25]}  a6 {[%clk 0:02:42]} 8. Nxc6 {[%clk 0:02:05]}  bxc6 {[%clk 0:02:39]} 9. Qg3 {[%clk 0:02:03]}  Bd6 {[%clk 0:02:35]} 10. Qh4 {[%clk 0:01:58]}  Be5 {[%clk 0:02:35]} 11. Bd3 {[%clk 0:01:34]}  Rb8 {[%clk 0:02:22]} 12. O-O {[%clk 0:01:33]}  Rxb2 {[%clk 0:02:20]} 13. Ne2 {[%clk 0:01:32]}  Qb6 {[%clk 0:01:27]} 14. Be3 {[%clk 0:01:27]}  Qd8 {[%clk 0:01:22]} 15. f4 {[%clk 0:01:25]}  Bc7 {[%clk 0:01:21]} 16. Kh1 {[%clk 0:01:13]}  d5 {[%clk 0:01:10]} 17. e5 {[%clk 0:00:54]}  Nd7 {[%clk 0:01:03]} 18. Qg4 {[%clk 0:00:44]}  g6 {[%clk 0:01:03]} 19. Rfb1 {[%clk 0:00:39]}  Rxb1+ {[%clk 0:01:02]} 20. Rxb1 {[%clk 0:00:40]}  c5 {[%clk 0:00:58]} 21. c4 {[%clk 0:00:40]}  O-O {[%clk 0:00:49]} 22. Qf3 {[%clk 0:00:36]}  dxc4 {[%clk 0:00:38]} 23. Bxc4 {[%clk 0:00:36]}  Nb6 {[%clk 0:00:38]} 24. Bb3 {[%clk 0:00:34]}  c4 {[%clk 0:00:38]} 25. Bc2 {[%clk 0:00:34]}  Nd5 {[%clk 0:00:37]} 26. Bc5 {[%clk 0:00:33]}  Re8 {[%clk 0:00:38]} 27. Be4 {[%clk 0:00:21]}  Bd7 {[%clk 0:00:36]} 28. Nc3 {[%clk 0:00:20]}  Nxc3 {[%clk 0:00:34]} 29. Qxc3 {[%clk 0:00:21]}  Bb5 {[%clk 0:00:32]} 30. h3 {[%clk 0:00:13]}  Ba5 {[%clk 0:00:30]} 31. Qf3 {[%clk 0:00:11]}  c3 {[%clk 0:00:27]} 32. Bd6 {[%clk 0:00:11]}  Qd7 {[%clk 0:00:25]} 33. Rd1 {[%clk 0:00:11]}  Rc8 {[%clk 0:00:23]} 34. Bc2 {[%clk 0:00:09]}  Ba4 {[%clk 0:00:20]} 35. Bb4 {[%clk 0:00:04]}  Qxd1+ {[%clk 0:00:16]} 36. Qxd1 {[%clk 0:00:03]}  Bxc2 {[%clk 0:00:17]} 37. Qxc2 {[%clk 0:00:04]}  Bxb4 {[%clk 0:00:17]} 38. Kh2 {[%clk 0:00:05]}  Bf8 {[%clk 0:00:16]} 39. Kg3 {[%clk 0:00:04]}  h5 {[%clk 0:00:16]} 40. Kf3 {[%clk 0:00:04]}  h4 {[%clk 0:00:17]} 41. Ke4 {[%clk 0:00:04]}  Be7 {[%clk 0:00:17]} 42. Kd3 {[%clk 0:00:04]}  Kg7 {[%clk 0:00:17]} 43. Ke4 {[%clk 0:00:02]}  Bb4 {[%clk 0:00:16]} 44. Kf3 {[%clk 0:00:02]}  Ba3 {[%clk 0:00:16]} 45. Kg4 {[%clk 0:00:02]}  Be7 {[%clk 0:00:15]} 46. a4 {[%clk 0:00:01]}  Rc4 {[%clk 0:00:16]} 47. Qb3 {[%clk 0:00:01]}  Rc5 {[%clk 0:00:14]} 48. Qc2 {[%clk 0:00:01]}  a5 {[%clk 0:00:14]} 49. Kf3 {[%clk 0:00:01]}  Rc7 {[%clk 0:00:13]} 50. Kg4 {[%clk 0:00:01]}  Rc8 {[%clk 0:00:13]} 51. g3 {[%clk 0:00:01]}  hxg3 {[%clk 0:00:13]} 52. Kxg3 {[%clk 0:00:02]}  Bb4 {[%clk 0:00:13]} 53. h4 {[%clk 0:00:02]}  Rd8 {[%clk 0:00:13]} 0-1


[Site "https://www.chess.com"]

[Event "Titled Tuesday Blitz September 27 Late 2022"]
[White "Bilan, Danila"]
[Black "Rottenwohrer Suarez, Juan"]
[WhiteFideId "24161918"]
[BlackFideId "32068182"]
[WhiteElo "2164"]
[BlackElo "2132"]
[Result "0-1"]
[Round "09"]
[TimeControl "180+1"]
[Date "2022.09.28"]
[WhiteClock "0:00:28"]
[BlackClock "0:00:06"]

1. d4 {[%clk 0:02:59]}  Nf6 {[%clk 0:02:59]} 2. Nf3 {[%clk 0:02:58]}  g6 {[%clk 0:03:00]} 3. Bg5 {[%clk 0:02:57]}  Bg7 {[%clk 0:02:59]} 4. c3 {[%clk 0:02:57]}  O-O {[%clk 0:02:59]} 5. Nbd2 {[%clk 0:02:57]}  d5 {[%clk 0:02:59]} 6. e3 {[%clk 0:02:57]}  c5 {[%clk 0:02:58]} 7. Bd3 {[%clk 0:02:57]}  Nc6 {[%clk 0:02:58]} 8. O-O {[%clk 0:02:57]}  b6 {[%clk 0:02:58]} 9. Qe2 {[%clk 0:02:54]}  Bb7 {[%clk 0:02:58]} 10. Ba6 {[%clk 0:02:46]}  Qc8 {[%clk 0:02:50]} 11. Bxb7 {[%clk 0:02:45]}  Qxb7 {[%clk 0:02:51]} 12. a4 {[%clk 0:02:45]}  Rfe8 {[%clk 0:02:47]} 13. Qb5 {[%clk 0:02:25]}  a6 {[%clk 0:02:08]} 14. Qb3 {[%clk 0:02:21]}  c4 {[%clk 0:01:35]} 15. Qc2 {[%clk 0:02:18]}  b5 {[%clk 0:01:36]} 16. axb5 {[%clk 0:02:11]}  axb5 {[%clk 0:01:36]} 17. e4 {[%clk 0:02:09]}  dxe4 {[%clk 0:01:20]} 18. Nxe4 {[%clk 0:01:42]}  Nxd4 {[%clk 0:01:14]} 19. Nxd4 {[%clk 0:01:19]}  Nxe4 {[%clk 0:01:01]} 20. Be3 {[%clk 0:01:19]}  Nc5 {[%clk 0:00:37]} 21. b4 {[%clk 0:01:01]}  cxb3 {[%clk 0:00:24]} 22. Nxb3 {[%clk 0:01:00]}  Nxb3 {[%clk 0:00:21]} 23. Qxb3 {[%clk 0:01:01]}  Rxa1 {[%clk 0:00:20]} 24. Rxa1 {[%clk 0:01:01]}  Rc8 {[%clk 0:00:20]} 25. Rb1 {[%clk 0:00:52]}  Rxc3 {[%clk 0:00:08]} 26. Qxb5 {[%clk 0:00:52]}  Qxb5 {[%clk 0:00:09]} 27. Rxb5 {[%clk 0:00:53]}  h5 {[%clk 0:00:09]} 28. h3 {[%clk 0:00:52]}  e6 {[%clk 0:00:08]} 29. Rb8+ {[%clk 0:00:51]}  Kh7 {[%clk 0:00:08]} 30. Rb7 {[%clk 0:00:52]}  Kg8 {[%clk 0:00:04]} 31. g3 {[%clk 0:00:52]}  Rc8 {[%clk 0:00:03]} 32. Kg2 {[%clk 0:00:52]}  Re8 {[%clk 0:00:04]} 33. h4 {[%clk 0:00:51]}  Bf6 {[%clk 0:00:04]} 34. Rb5 {[%clk 0:00:50]}  Kg7 {[%clk 0:00:05]} 35. Ra5 {[%clk 0:00:49]}  Rd8 {[%clk 0:00:05]} 36. Ra7 {[%clk 0:00:49]}  Bd4 {[%clk 0:00:05]} 37. Bg5 {[%clk 0:00:48]}  Bxa7 {[%clk 0:00:02]} 38. Bxd8 {[%clk 0:00:48]}  f6 {[%clk 0:00:03]} 39. f3 {[%clk 0:00:45]}  Kf7 {[%clk 0:00:03]} 40. Kf1 {[%clk 0:00:41]}  e5 {[%clk 0:00:03]} 41. Ke2 {[%clk 0:00:41]}  Ke6 {[%clk 0:00:04]} 42. Ba5 {[%clk 0:00:41]}  Bc5 {[%clk 0:00:04]} 43. Bd8 {[%clk 0:00:40]}  f5 {[%clk 0:00:04]} 44. Ba5 {[%clk 0:00:39]}  Kd5 {[%clk 0:00:05]} 45. Bd2 {[%clk 0:00:34]}  Bd4 {[%clk 0:00:05]} 46. Bg5 {[%clk 0:00:33]}  Bb6 {[%clk 0:00:06]} 47. Bh6 {[%clk 0:00:33]}  Ba5 {[%clk 0:00:06]} 48. Bc1 {[%clk 0:00:33]}  Bc7 {[%clk 0:00:04]} 49. Bb2 {[%clk 0:00:30]}  e4 {[%clk 0:00:04]} 50. f4 {[%clk 0:00:23]}  Kc4 {[%clk 0:00:04]} 51. Bc1 {[%clk 0:00:22]}  Bb6 {[%clk 0:00:04]} 52. Bb2 {[%clk 0:00:22]}  Bd4 {[%clk 0:00:05]} 53. Ba3 {[%clk 0:00:22]}  Bc5 {[%clk 0:00:02]} 54. Bb2 {[%clk 0:00:22]}  Kb3 {[%clk 0:00:03]} 55. Bc1 {[%clk 0:00:21]}  Kc2 {[%clk 0:00:03]} 56. Bd2 {[%clk 0:00:20]}  Bd4 {[%clk 0:00:02]} 57. Ba5 {[%clk 0:00:20]}  Bc3 {[%clk 0:00:02]} 58. Bb6 {[%clk 0:00:20]}  Bb4 {[%clk 0:00:02]} 59. Be3 {[%clk 0:00:21]}  Kb3 {[%clk 0:00:01]} 60. Ba7 {[%clk 0:00:21]}  Kc2 {[%clk 0:00:01]} 61. Bd4 {[%clk 0:00:21]}  Ba3 {[%clk 0:00:02]} 62. Be3 {[%clk 0:00:22]}  Bc1 {[%clk 0:00:02]} 63. Ba7 {[%clk 0:00:22]}  Kb3 {[%clk 0:00:01]} 64. Bb6 {[%clk 0:00:23]}  Kc4 {[%clk 0:00:02]} 65. Be3 {[%clk 0:00:22]}  Bxe3 {[%clk 0:00:01]} 66. Kxe3 {[%clk 0:00:22]}  Kc3 {[%clk 0:00:02]} 67. Ke2 {[%clk 0:00:23]}  Kc2 {[%clk 0:00:03]} 68. Ke3 {[%clk 0:00:23]}  Kd1 {[%clk 0:00:03]} 69. Kd4 {[%clk 0:00:21]}  Ke2 {[%clk 0:00:03]} 70. g4 {[%clk 0:00:21]}  hxg4 {[%clk 0:00:02]} 71. Ke5 {[%clk 0:00:22]}  Kf3 {[%clk 0:00:02]} 72. Kf6 {[%clk 0:00:23]}  e3 {[%clk 0:00:03]} 73. Kxg6 {[%clk 0:00:23]}  e2 {[%clk 0:00:04]} 74. h5 {[%clk 0:00:24]}  e1=Q {[%clk 0:00:04]} 75. h6 {[%clk 0:00:25]}  Qe6+ {[%clk 0:00:04]} 76. Kh7 {[%clk 0:00:26]}  Qxh6+ {[%clk 0:00:05]} 77. Kxh6 {[%clk 0:00:25]}  Kxf4 {[%clk 0:00:06]} 78. Kg6 {[%clk 0:00:26]}  g3 {[%clk 0:00:06]} 79. Kh5 {[%clk 0:00:26]}  g2 {[%clk 0:00:07]} 80. Kh4 {[%clk 0:00:27]}  g1=Q {[%clk 0:00:06]} 81. Kh3 {[%clk 0:00:28]} 0-1


[Site "https://www.chess.com"]

[Event "Titled Tuesday Blitz September 27 Late 2022"]
[White "Bispo, Leonardo"]
[Black "Rustemov, Alexander"]
[WhiteFideId "2107899"]
[BlackFideId "4119002"]
[WhiteElo "2253"]
[BlackElo "2833"]
[Result "0-1"]
[Round "09"]
[TimeControl "180+1"]
[Date "2022.09.27"]
[WhiteClock "0:00:08"]
[BlackClock "0:00:05"]

1. d4 {[%clk 0:03:00]}  d5 {[%clk 0:02:58]} 2. c4 {[%clk 0:02:59]}  c6 {[%clk 0:02:58]} 3. Nf3 {[%clk 0:02:59]}  Nf6 {[%clk 0:02:58]} 4. e3 {[%clk 0:02:59]}  a6 {[%clk 0:02:57]} 5. Nc3 {[%clk 0:02:56]}  b5 {[%clk 0:02:56]} 6. b3 {[%clk 0:02:56]}  Bg4 {[%clk 0:02:56]} 7. a4 {[%clk 0:02:55]}  b4 {[%clk 0:02:47]} 8. Nb1 {[%clk 0:02:55]}  a5 {[%clk 0:02:42]} 9. Be2 {[%clk 0:02:55]}  e6 {[%clk 0:02:40]} 10. Ne5 {[%clk 0:02:54]}  Bxe2 {[%clk 0:02:36]} 11. Qxe2 {[%clk 0:02:55]}  Nfd7 {[%clk 0:02:34]} 12. Nxd7 {[%clk 0:02:52]}  Nxd7 {[%clk 0:02:32]} 13. Bb2 {[%clk 0:02:52]}  Bd6 {[%clk 0:02:30]} 14. Nd2 {[%clk 0:02:51]}  O-O {[%clk 0:02:29]} 15. O-O {[%clk 0:02:51]}  Qh4 {[%clk 0:02:13]} 16. g3 {[%clk 0:02:50]}  Qh3 {[%clk 0:02:12]} 17. e4 {[%clk 0:02:43]}  dxe4 {[%clk 0:01:39]} 18. Nxe4 {[%clk 0:02:43]}  Be7 {[%clk 0:01:38]} 19. Rad1 {[%clk 0:02:42]}  Nf6 {[%clk 0:01:35]} 20. d5 {[%clk 0:02:38]}  cxd5 {[%clk 0:01:10]} 21. Nxf6+ {[%clk 0:02:33]}  Bxf6 {[%clk 0:01:09]} 22. Bxf6 {[%clk 0:02:33]}  gxf6 {[%clk 0:01:10]} 23. cxd5 {[%clk 0:02:34]}  Rfd8 {[%clk 0:01:05]} 24. dxe6 {[%clk 0:02:28]}  Qxe6 {[%clk 0:01:04]} 25. Qf3 {[%clk 0:02:28]}  Rac8 {[%clk 0:00:58]} 26. Rde1 {[%clk 0:02:19]}  Qc6 {[%clk 0:00:56]} 27. Qg4+ {[%clk 0:02:16]}  Kh8 {[%clk 0:00:56]} 28. Re7 {[%clk 0:02:01]}  Rc7 {[%clk 0:00:49]} 29. Rxc7 {[%clk 0:01:51]}  Qxc7 {[%clk 0:00:50]} 30. Qf5 {[%clk 0:01:50]}  Qe5 {[%clk 0:00:47]} 31. Qf3 {[%clk 0:01:22]}  Qc3 {[%clk 0:00:41]} 32. Qf5 {[%clk 0:01:21]}  Qe5 {[%clk 0:00:36]} 33. Qg4 {[%clk 0:00:48]}  h5 {[%clk 0:00:32]} 34. Qc4 {[%clk 0:00:46]}  Kg7 {[%clk 0:00:29]} 35. Rc1 {[%clk 0:00:31]}  Rd2 {[%clk 0:00:28]} 36. Rf1 {[%clk 0:00:19]}  Rb2 {[%clk 0:00:25]} 37. Kg2 {[%clk 0:00:17]}  Qf5 {[%clk 0:00:21]} 38. h3 {[%clk 0:00:16]}  Rc2 {[%clk 0:00:21]} 39. Qa6 {[%clk 0:00:14]}  Rc3 {[%clk 0:00:21]} 40. Re1 {[%clk 0:00:12]}  Qd5+ {[%clk 0:00:16]} 41. Kg1 {[%clk 0:00:12]}  Rxb3 {[%clk 0:00:15]} 42. Qc8 {[%clk 0:00:09]}  Rd3 {[%clk 0:00:13]} 43. Kh2 {[%clk 0:00:08]}  Rd2 {[%clk 0:00:12]} 44. Rf1 {[%clk 0:00:07]}  Rd1 {[%clk 0:00:11]} 45. Rxd1 {[%clk 0:00:07]}  Qxd1 {[%clk 0:00:11]} 46. Qf5 {[%clk 0:00:08]}  b3 {[%clk 0:00:10]} 47. g4 {[%clk 0:00:07]}  b2 {[%clk 0:00:08]} 48. g5 {[%clk 0:00:07]}  Qd6+ {[%clk 0:00:06]} 49. f4 {[%clk 0:00:07]}  Qe6 {[%clk 0:00:05]} 50. gxf6+ {[%clk 0:00:08]}  Qxf6 {[%clk 0:00:05]} 51. Qc2 {[%clk 0:00:08]}  Qd4 {[%clk 0:00:05]} 52. Kg2 {[%clk 0:00:09]}  Qb4 {[%clk 0:00:04]} 53. Qb1 {[%clk 0:00:09]}  Qc3 {[%clk 0:00:05]} 54. Qf5 {[%clk 0:00:07]}  Qd2+ {[%clk 0:00:04]} 55. Kg3 {[%clk 0:00:08]}  Qe1+ {[%clk 0:00:04]} 56. Kf3 {[%clk 0:00:07]}  b1=Q {[%clk 0:00:05]} 57. Qg5+ {[%clk 0:00:07]}  Kf8 {[%clk 0:00:05]} 58. Qd8+ {[%clk 0:00:07]}  Qe8 {[%clk 0:00:05]} 59. Qd6+ {[%clk 0:00:07]}  Qe7 {[%clk 0:00:05]} 60. Qd4 {[%clk 0:00:07]}  Qf1+ {[%clk 0:00:04]} 61. Kg3 {[%clk 0:00:08]}  Qee1+ {[%clk 0:00:04]} 62. Kh2 {[%clk 0:00:07]}  Qef2+ {[%clk 0:00:04]} 63. Qxf2 {[%clk 0:00:08]}  Qxf2+ {[%clk 0:00:05]} 0-1


[Site "https://www.chess.com"]

[Event "Titled Tuesday Blitz September 27 Late 2022"]
[White "Bryakin, Mikhail"]
[Black "Yoo, Christopher Woojin"]
[WhiteFideId "4165314"]
[BlackFideId "30909694"]
[WhiteElo "2357"]
[BlackElo "2105"]
[Result "0-1"]
[Round "09"]
[TimeControl "180+1"]
[Date "2022.09.27"]
[WhiteClock "0:00:12"]
[BlackClock "0:00:06"]

1. d4 {[%clk 0:03:00]}  Nf6 {[%clk 0:02:47]} 2. Nc3 {[%clk 0:03:00]}  d5 {[%clk 0:02:46]} 3. Bf4 {[%clk 0:03:01]}  e6 {[%clk 0:02:45]} 4. Nb5 {[%clk 0:03:00]}  Bb4+ {[%clk 0:02:46]} 5. c3 {[%clk 0:02:59]}  Ba5 {[%clk 0:02:46]} 6. e3 {[%clk 0:02:49]}  O-O {[%clk 0:02:41]} 7. Nf3 {[%clk 0:02:49]}  a6 {[%clk 0:02:39]} 8. Na3 {[%clk 0:02:49]}  c5 {[%clk 0:02:39]} 9. dxc5 {[%clk 0:02:40]}  Ne4 {[%clk 0:02:38]} 10. b4 {[%clk 0:02:35]}  Bc7 {[%clk 0:02:33]} 11. Bxc7 {[%clk 0:02:34]}  Qxc7 {[%clk 0:02:34]} 12. Bd3 {[%clk 0:02:31]}  e5 {[%clk 0:02:07]} 13. Bxe4 {[%clk 0:02:24]}  dxe4 {[%clk 0:02:06]} 14. Nd2 {[%clk 0:02:24]}  Rd8 {[%clk 0:01:48]} 15. Nac4 {[%clk 0:02:24]}  Be6 {[%clk 0:01:38]} 16. Qc2 {[%clk 0:02:24]}  f5 {[%clk 0:01:35]} 17. O-O {[%clk 0:02:20]}  Nc6 {[%clk 0:01:34]} 18. Nb6 {[%clk 0:02:19]}  Rab8 {[%clk 0:01:33]} 19. Rfd1 {[%clk 0:02:14]}  Rd3 {[%clk 0:01:31]} 20. Ndc4 {[%clk 0:02:15]}  Rbd8 {[%clk 0:01:29]} 21. a3 {[%clk 0:02:08]}  Qf7 {[%clk 0:01:00]} 22. Nd6 {[%clk 0:02:08]}  R8xd6 {[%clk 0:00:59]} 23. cxd6 {[%clk 0:02:08]}  Bb3 {[%clk 0:00:58]} 24. Qe2 {[%clk 0:02:03]}  Bxd1 {[%clk 0:00:58]} 25. Rxd1 {[%clk 0:02:04]}  Rxc3 {[%clk 0:00:26]} 26. d7 {[%clk 0:01:51]}  Nd8 {[%clk 0:00:26]} 27. h4 {[%clk 0:01:36]}  Qe6 {[%clk 0:00:24]} 28. Na4 {[%clk 0:01:29]}  Rc7 {[%clk 0:00:22]} 29. Nc5 {[%clk 0:01:28]}  Qe7 {[%clk 0:00:13]} 30. Qa2+ {[%clk 0:01:28]}  Kh8 {[%clk 0:00:10]} 31. Qd5 {[%clk 0:01:27]}  g6 {[%clk 0:00:08]} 32. Ne6 {[%clk 0:01:16]}  Qxe6 {[%clk 0:00:06]} 33. Qxe6 {[%clk 0:01:13]}  Nxe6 {[%clk 0:00:07]} 34. d8=Q+ {[%clk 0:01:14]}  Nxd8 {[%clk 0:00:07]} 35. Rxd8+ {[%clk 0:01:15]}  Kg7 {[%clk 0:00:08]} 36. Rb8 {[%clk 0:01:09]}  Kf6 {[%clk 0:00:07]} 37. g3 {[%clk 0:01:06]}  Ke6 {[%clk 0:00:07]} 38. Rd8 {[%clk 0:01:01]}  Rd7 {[%clk 0:00:05]} 39. Rc8 {[%clk 0:00:59]}  Kd5 {[%clk 0:00:04]} 40. Kf1 {[%clk 0:00:55]}  Kd6 {[%clk 0:00:02]} 41. a4 {[%clk 0:00:49]}  Rc7 {[%clk 0:00:02]} 42. Rd8+ {[%clk 0:00:50]}  Ke6 {[%clk 0:00:02]} 43. Re8+ {[%clk 0:00:49]}  Kd5 {[%clk 0:00:02]} 44. b5 {[%clk 0:00:46]}  axb5 {[%clk 0:00:02]} 45. axb5 {[%clk 0:00:46]}  b6 {[%clk 0:00:02]} 46. Ke2 {[%clk 0:00:45]}  Rc2+ {[%clk 0:00:02]} 47. Kf1 {[%clk 0:00:44]}  Rc7 {[%clk 0:00:02]} 48. Ke2 {[%clk 0:00:44]}  Kd6 {[%clk 0:00:02]} 49. Ke1 {[%clk 0:00:40]}  Ra7 {[%clk 0:00:02]} 50. Rc8 {[%clk 0:00:37]}  Rc7 {[%clk 0:00:02]} 51. Re8 {[%clk 0:00:37]}  Rc5 {[%clk 0:00:01]} 52. Rh8 {[%clk 0:00:36]}  Rc7 {[%clk 0:00:01]} 53. Rd8+ {[%clk 0:00:36]}  Kc5 {[%clk 0:00:01]} 54. Re8 {[%clk 0:00:36]}  Kxb5 {[%clk 0:00:02]} 55. Rxe5+ {[%clk 0:00:36]}  Kc4 {[%clk 0:00:02]} 56. Kd2 {[%clk 0:00:34]}  Ra7 {[%clk 0:00:02]} 57. Re8 {[%clk 0:00:32]}  Ra2+ {[%clk 0:00:02]} 58. Ke1 {[%clk 0:00:33]}  b5 {[%clk 0:00:02]} 59. Rc8+ {[%clk 0:00:33]}  Kd3 {[%clk 0:00:02]} 60. Rd8+ {[%clk 0:00:33]}  Kc3 {[%clk 0:00:03]} 61. Rc8+ {[%clk 0:00:34]}  Kb3 {[%clk 0:00:03]} 62. Rc7 {[%clk 0:00:34]}  b4 {[%clk 0:00:03]} 63. Rxh7 {[%clk 0:00:34]}  Ra1+ {[%clk 0:00:03]} 64. Kd2 {[%clk 0:00:34]}  Ra2+ {[%clk 0:00:02]} 65. Ke1 {[%clk 0:00:35]}  Rc2 {[%clk 0:00:01]} 66. Rg7 {[%clk 0:00:29]}  Rc6 {[%clk 0:00:01]} 67. Kd2 {[%clk 0:00:28]}  Kb2 {[%clk 0:00:01]} 68. h5 {[%clk 0:00:25]}  gxh5 {[%clk 0:00:01]} 69. Rg5 {[%clk 0:00:26]}  Rc2+ {[%clk 0:00:01]} 70. Ke1 {[%clk 0:00:26]}  b3 {[%clk 0:00:02]} 71. Rxf5 {[%clk 0:00:24]}  Kc1 {[%clk 0:00:02]} 72. Rd5 {[%clk 0:00:25]}  Rc3 {[%clk 0:00:02]} 73. Rd1+ {[%clk 0:00:23]}  Kc2 {[%clk 0:00:02]} 74. Rd2+ {[%clk 0:00:22]}  Kb1 {[%clk 0:00:03]} 75. Rd4 {[%clk 0:00:22]}  b2 {[%clk 0:00:03]} 76. Kd2 {[%clk 0:00:20]}  Rc2+ {[%clk 0:00:04]} 77. Kd1 {[%clk 0:00:20]}  Rc1+ {[%clk 0:00:05]} 78. Kd2 {[%clk 0:00:21]}  Ka2 {[%clk 0:00:05]} 79. Ra4+ {[%clk 0:00:12]}  Kb3 {[%clk 0:00:05]} 80. Ra8 {[%clk 0:00:13]}  Rc2+ {[%clk 0:00:05]} 81. Kd1 {[%clk 0:00:12]}  b1=Q# {[%clk 0:00:06]} 0-1


[Site "https://www.chess.com"]

[Event "Titled Tuesday Blitz September 27 Late 2022"]
[White "Dardha, Daniel"]
[Black "Bortnyk, Olexandr"]
[WhiteFideId "240990"]
[BlackFideId "14120828"]
[WhiteElo "2528"]
[BlackElo "2723"]
[Result "1-0"]
[Round "09"]
[TimeControl "180+1"]
[Date "2022.09.27"]
[WhiteClock "0:00:24"]
[BlackClock "0:00:04"]

1. d4 {[%clk 0:03:00]}  d6 {[%clk 0:03:00]} 2. Nf3 {[%clk 0:03:00]}  Nf6 {[%clk 0:02:58]} 3. c4 {[%clk 0:03:00]}  g6 {[%clk 0:02:59]} 4. Nc3 {[%clk 0:03:01]}  Bf5 {[%clk 0:02:59]} 5. h3 {[%clk 0:03:00]}  h5 {[%clk 0:02:57]} 6. Qb3 {[%clk 0:02:57]}  Qc8 {[%clk 0:02:57]} 7. Bg5 {[%clk 0:02:55]}  Bg7 {[%clk 0:02:57]} 8. Bxf6 {[%clk 0:02:40]}  Bxf6 {[%clk 0:02:55]} 9. e4 {[%clk 0:02:40]}  Bd7 {[%clk 0:02:56]} 10. O-O-O {[%clk 0:02:37]}  Nc6 {[%clk 0:02:52]} 11. Nd5 {[%clk 0:02:31]}  Bg7 {[%clk 0:02:51]} 12. Be2 {[%clk 0:02:27]}  e6 {[%clk 0:02:49]} 13. Ne3 {[%clk 0:02:26]}  e5 {[%clk 0:02:44]} 14. dxe5 {[%clk 0:02:20]}  dxe5 {[%clk 0:02:29]} 15. c5 {[%clk 0:02:19]}  Nd4 {[%clk 0:01:55]} 16. Nxd4 {[%clk 0:02:18]}  exd4 {[%clk 0:01:56]} 17. Nc2 {[%clk 0:02:01]}  O-O {[%clk 0:01:56]} 18. Nxd4 {[%clk 0:01:55]}  Qe8 {[%clk 0:01:57]} 19. Qe3 {[%clk 0:01:47]}  Qe5 {[%clk 0:01:52]} 20. f4 {[%clk 0:01:44]}  Qxc5+ {[%clk 0:01:52]} 21. Kb1 {[%clk 0:01:45]}  Rad8 {[%clk 0:01:47]} 22. e5 {[%clk 0:01:43]}  Rfe8 {[%clk 0:01:28]} 23. g4 {[%clk 0:01:43]}  Ba4 {[%clk 0:01:16]} 24. Rd2 {[%clk 0:01:38]}  Bxe5 {[%clk 0:00:38]} 25. fxe5 {[%clk 0:01:34]}  Rxe5 {[%clk 0:00:39]} 26. Qf4 {[%clk 0:01:01]}  Qe7 {[%clk 0:00:18]} 27. Nf5 {[%clk 0:00:44]}  Rxf5 {[%clk 0:00:14]} 28. Rxd8+ {[%clk 0:00:42]}  Qxd8 {[%clk 0:00:11]} 29. gxf5 {[%clk 0:00:42]}  Bc6 {[%clk 0:00:10]} 30. Rd1 {[%clk 0:00:37]}  Qf6 {[%clk 0:00:10]} 31. Bc4 {[%clk 0:00:33]}  g5 {[%clk 0:00:09]} 32. Rg1 {[%clk 0:00:31]}  g4 {[%clk 0:00:07]} 33. hxg4 {[%clk 0:00:30]}  b5 {[%clk 0:00:07]} 34. gxh5+ {[%clk 0:00:28]}  Kh8 {[%clk 0:00:05]} 35. Bd3 {[%clk 0:00:26]}  Bd5 {[%clk 0:00:05]} 36. Qg5 {[%clk 0:00:24]}  Qxg5 {[%clk 0:00:04]} 37. Rxg5 {[%clk 0:00:24]} 1-0


[Site "https://www.chess.com"]